[Event "European Online Club-ch-G 2021"]
[Site "Online"]
[Date "2021.03.27"]
[Round "2.10"]
[White "Sahidi, Samir"]
[Black "Stalmach, Richard"]
[Result "1-0"]
[ECO "E97"]
[WhiteElo "2407"]
[BlackElo "2296"]
[Annotator "NA"]
[PlyCount "135"]
[EventDate "2021.03.27"]
[EventType "team-tourn"]
[EventCountry "NET"]
[SourceTitle "playchess.com"]
[Source "ChessBase"]
[SourceQuality "1"]
[TimeControl "900+5"]

1. d4 {[%emt 0:00:00]} Nf6 {[%emt 0:00:03]} 2. c4 {[%emt 0:00:10]} g6 {[%emt 0:00:02]} 3. Nc3 {[%emt 0:00:38]} Bg7 {[%emt 0:00:03]} 4. Nf3 {[%emt 0:00:20]} O-O {[%emt 0:00:04]} 5. e4 {[%emt 0:00:26]} d6 {[%emt 0:00:04]} 6. Be2 {[%emt 0:00:10]} e5 {[%emt 0:00:02]} 7. O-O {[%emt 0:00:37]} Nc6 {[%emt 0:00:03]} 8. d5 {[%emt 0:01:04]} Ne7 {[%emt 0:00:03]} 9. b4 {[%emt 0:00:24]} a5 {[%emt 0:00:03]} 10. Ba3 {[%emt 0:00:40]} axb4 {[%emt 0:00:03]} 11. Bxb4 {[%emt 0:00:02]} b6 {[%emt 0:00:02]} 12. a4 {[%emt 0:00:03]} Re8 {[%emt 0:00:02]} 13. Qc2 {[%emt 0:00:47]} c5 {[%emt 0:00:25]} 14. dxc6 {[%emt 0:00:29]} Nxc6 {[%emt 0:00:03]} 15. Ba3 {[%emt 0:00:27]} Nd4 {[%emt 0:00:27]} 16. Qd3 {[%emt 0:00:07]} Bb7 {[%emt 0:01:23]} 17. Rfd1 {[%emt 0:00:23]} Rc8 {[%emt 0:03:00]} 18. Nd2 {[%emt 0:02:28]} h5 {[%emt 0:01:14]} 19. Nb5 {[%emt 0:00:13]} Re6 {[%emt 0:00:35]} 20. Nxd4 {[%emt 0:00:08]} exd4 {[%emt 0:00:05]} 21. f3 {[%emt 0:00:47]} Nd7 {[%emt 0:00:05]} 22. Rab1 {[%emt 0:00:39]} Nc5 {[%emt 0:02:43]} 23. Qc2 {[%emt 0:00:03]} Bc6 {[%emt 0:00:25]} 24. Bxc5 {[%emt 0:01:07]} dxc5 {[%emt 0:00:06]} 25. Qb3 {[%emt 0:00:15]} Bd7 {[%emt 0:00:26]} 26. Bd3 {[%emt 0:00:29]} Ra8 {[%emt 0:00:26]} 27. Ra1 {[%emt 0:00:09]} Be5 {[%emt 0:02:03]} 28. Ra2 {[%emt 0:00:13]} h4 {[%emt 0:00:22]} 29. Nf1 {[%emt 0:00:23]} Bc7 {[%emt 0:00:23]} 30. Qc2 {[%emt 0:00:11]} Qg5 {[%emt 0:00:14]} 31. Rda1 {[%emt 0:00:25]} Kh8 {[%emt 0:00:37]} 32. Qd2 {[%emt 0:00:10]} Bf4 {[%emt 0:00:03]} 33. Qe1 {[%emt 0:00:07]} Bc7 {[%emt 0:00:38]} 34. g3 {[%emt 0:00:13]} Kg7 {[%emt 0:00:32]} 35. Rg2 {[%emt 0:00:32]} hxg3 {[%emt 0:00:34]} 36. hxg3 {[%emt 0:00:22]} Rh8 {[%emt 0:00:13]} 37. f4 {[%emt 0:00:08]} Qd8 {[%emt 0:00:15]} 38. Nd2 {[%emt 0:00:05]} g5 {[%emt 0:00:05]} 39. e5 {[%emt 0:00:04]} Reh6 {[%emt 0:00:04]} 40. Kf2 {[%emt 0:00:02]} Bc6 {[%emt 0:00:04]} 41. Be4 {[%emt 0:00:02]} Qe8 {[%emt 0:00:10]} 42. Bxc6 {[%emt 0:00:06]} Qxc6 {[%emt 0:00:01]} 43. Qe4 {[%emt 0:00:01]} Qxe4 {[%emt 0:00:04]} 44. Nxe4 {[%emt 0:00:01]} g4 {[%emt 0:00:13]} 45. Nf6 {[%emt 0:00:05]} Rg6 {[%emt 0:00:03]} 46. Nd5 {[%emt 0:00:03]} Bd8 {[%emt 0:00:03]} 47. Ke2 {[%emt 0:00:03]} Rgh6 {[%emt 0:00:02]} 48. Kd3 {[%emt 0:00:09]} Kg6 {[%emt 0:00:04]} 49. Ke4 {[%emt 0:00:27]} Rh2 {[%emt 0:00:04]} 50. Rxh2 {[%emt 0:00:09]} Rxh2 {[%emt 0:00:02]} 51. f5+ {[%emt 0:00:02]} Kg5 {[%emt 0:00:05]} 52. Nf4 {[%emt 0:00:06]} Rc2 {[%emt 0:00:17]} 53. e6 {[%emt 0:00:08]} Kf6 {[%emt 0:00:08]} 54. Nd5+ {[%emt 0:00:09]} Kg7 {[%emt 0:00:02]} 55. Kd3 {[%emt 0:00:10]} Rf2 {[%emt 0:00:05]} 56. e7 {[%emt 0:00:06]} Bxe7 {[%emt 0:00:03]} 57. Nxe7 {[%emt 0:00:02]} Rf3+ {[%emt 0:00:01]} 58. Kd2 {[%emt 0:00:01]} Rxg3 {[%emt 0:00:11]} 59. Nd5 {[%emt 0:00:03]} Rf3 {[%emt 0:00:05]} 60. Nxb6 {[%emt 0:00:04]} Kf6 {[%emt 0:00:03]} 61. a5 {[%emt 0:00:02]} g3 {[%emt 0:00:03]} 62. a6 {[%emt 0:00:04]} g2 {[%emt 0:00:08]} 63. a7 {[%emt 0:00:36]} Rf1 {[%emt 0:00:02]} 64. a8=Q {[%emt 0:00:10]} g1=Q {[%emt 0:00:03]} 65. Qh8+ {[%emt 0:00:14]} Kxf5 {[%emt 0:00:09]} 66. Qh3+ {[%emt 0:00:06]} Kg6 {[%emt 0:00:08]} 67. Rxf1 {[%emt 0:00:09]} Qg5+ {[%emt 0:00:06]} 68. Kd3 {[%emt 0:00:05]} 1-0

[Event "European Online Club-ch-G 2021"]
[Site "Online"]
[Date "2021.03.27"]
[Round "2.11"]
[White "Gnojek, Petr"]
[Black "Kostolansky, Sebastian Lukas"]
[Result "0-1"]
[ECO "E39"]
[WhiteElo "2267"]
[BlackElo "2393"]
[Annotator "NA"]
[PlyCount "80"]
[EventDate "2021.03.27"]
[EventType "team-tourn"]
[EventCountry "NET"]
[SourceTitle "playchess.com"]
[Source "ChessBase"]
[SourceQuality "1"]
[TimeControl "900+5"]

1. d4 {[%emt 0:00:00]} Nf6 {[%emt 0:00:04]} 2. c4 {[%emt 0:00:03]} e6 {[%emt 0:00:05]} 3. Nc3 {[%emt 0:00:05]} Bb4 {[%emt 0:00:08]} 4. Qc2 {[%emt 0:00:03]} c5 {[%emt 0:00:13]} 5. dxc5 {[%emt 0:00:15]} Na6 {[%emt 0:00:18]} 6. e3 {[%emt 0:00:31]} O-O {[%emt 0:00:07]} 7. Nf3 {[%emt 0:00:07]} Nxc5 {[%emt 0:00:11]} 8. Bd2 {[%emt 0:00:26]} b6 {[%emt 0:02:26]} 9. Be2 {[%emt 0:00:12]} Bb7 {[%emt 0:00:07]} 10. O-O {[%emt 0:00:11]} d6 {[%emt 0:00:59]} 11. Rad1 {[%emt 0:01:52]} Qe7 {[%emt 0:00:48]} 12. a3 {[%emt 0:00:27]} Bxc3 {[%emt 0:00:19]} 13. Bxc3 {[%emt 0:00:02]} e5 {[%emt 0:00:28]} 14. b4 {[%emt 0:00:45]} Ne6 {[%emt 0:00:51]} 15. Bb2 {[%emt 0:02:31]} Rac8 {[%emt 0:01:46]} 16. Qa4 {[%emt 0:00:22]} Bc6 {[%emt 0:00:12]} 17. Qb3 {[%emt 0:00:02]} Ne4 {[%emt 0:01:48]} 18. Nd2 {[%emt 0:00:47]} N4g5 {[%emt 0:01:11]} 19. f3 {[%emt 0:00:36]} f5 {[%emt 0:01:51]} 20. Nb1 {[%emt 0:01:22]} f4 {[%emt 0:00:28]} 21. c5 {[%emt 0:03:19]} bxc5 {[%emt 0:00:09]} 22. bxc5 {[%emt 0:00:02]} d5 {[%emt 0:00:25]} 23. Bxe5 {[%emt 0:01:08]} Nxc5 {[%emt 0:00:05]} 24. Qc3 {[%emt 0:00:35]} Nd7 {[%emt 0:00:32]} 25. exf4 {[%emt 0:00:24]} Ba4 {[%emt 0:00:24]} 26. Qd4 {[%emt 0:00:02]} Bxd1 {[%emt 0:00:03]} 27. Qxd5+ {[%emt 0:00:04]} Nf7 {[%emt 0:00:06]} 28. Bxd1 {[%emt 0:00:50]} Ndxe5 {[%emt 0:00:05]} 29. fxe5 {[%emt 0:00:01]} Qxe5 {[%emt 0:00:35]} 30. Qxe5 {[%emt 0:00:15]} Nxe5 {[%emt 0:00:02]} 31. Bb3+ {[%emt 0:00:05]} Kh8 {[%emt 0:00:02]} 32. Kf2 {[%emt 0:00:09]} Rfd8 {[%emt 0:00:22]} 33. Kg3 {[%emt 0:00:05]} Rd3 {[%emt 0:00:06]} 34. Be6 {[%emt 0:00:02]} Rb8 {[%emt 0:00:08]} 35. Bf5 {[%emt 0:00:03]} Rdb3 {[%emt 0:00:13]} 36. Rd1 {[%emt 0:00:07]} g6 {[%emt 0:00:04]} 37. Be4 {[%emt 0:00:02]} Nc4 {[%emt 0:00:06]} 38. Bd5 {[%emt 0:00:07]} Rxb1 {[%emt 0:00:03]} 39. Rxb1 {[%emt 0:00:03]} Rxb1 {[%emt 0:00:02]} 40. Bxc4 {[%emt 0:00:01]} Ra1 {[%emt 0:00:01]} 0-1

[Event "European Online Club-ch-G 2021"]
[Site "Online"]
[Date "2021.03.27"]
[Round "2.12"]
[White "Haring, Filip"]
[Black "Laurincova, Kristyna"]
[Result "1-0"]
[ECO "A16"]
[WhiteElo "2376"]
[BlackElo "2008"]
[Annotator "NA"]
[PlyCount "85"]
[EventDate "2021.03.27"]
[EventType "team-tourn"]
[EventCountry "NET"]
[SourceTitle "playchess.com"]
[Source "ChessBase"]
[SourceQuality "1"]
[TimeControl "900+5"]

1. Nf3 {[%emt 0:00:00]} Nf6 {[%emt 0:00:06]} 2. c4 {[%emt 0:00:04]} g6 {[%emt 0:00:16]} 3. Nc3 {[%emt 0:00:09]} d5 {[%emt 0:01:46]} 4. cxd5 {[%emt 0:00:05]} Nxd5 {[%emt 0:00:02]} 5. Qb3 {[%emt 0:00:01]} Nxc3 {[%emt 0:00:43]} 6. Qxc3 {[%emt 0:00:06]} f6 {[%emt 0:00:32]} 7. e4 {[%emt 0:00:02]} Be6 {[%emt 0:00:31]} 8. Bc4 {[%emt 0:02:10]} Bxc4 {[%emt 0:01:47]} 9. Qxc4 {[%emt 0:00:03]} Nc6 {[%emt 0:00:15]} 10. d4 {[%emt 0:00:56]} Qd6 {[%emt 0:00:31]} 11. O-O {[%emt 0:01:01]} O-O-O {[%emt 0:00:09]} 12. d5 {[%emt 0:02:19]} Ne5 {[%emt 0:01:18]} 13. Nxe5 {[%emt 0:00:05]} Qxe5 {[%emt 0:00:16]} 14. Be3 {[%emt 0:00:25]} Kb8 {[%emt 0:01:42]} 15. a4 {[%emt 0:01:46]} e6 {[%emt 0:03:09]} 16. dxe6 {[%emt 0:00:18]} Rd6 {[%emt 0:00:12]} 17. Rac1 {[%emt 0:01:30]} Rxe6 {[%emt 0:01:55]} 18. Bf4 {[%emt 0:03:46]} Qxf4 {[%emt 0:00:35]} 19. Qxe6 {[%emt 0:00:02]} Bd6 {[%emt 0:00:04]} 20. g3 {[%emt 0:00:02]} Qe5 {[%emt 0:00:27]} 21. Qxe5 {[%emt 0:00:29]} Bxe5 {[%emt 0:00:10]} 22. b3 {[%emt 0:00:03]} Re8 {[%emt 0:00:16]} 23. Rfd1 {[%emt 0:00:09]} Bd6 {[%emt 0:00:02]} 24. Rc4 {[%emt 0:00:56]} a5 {[%emt 0:00:08]} 25. f4 {[%emt 0:00:09]} b6 {[%emt 0:00:05]} 26. Kg2 {[%emt 0:00:03]} Kb7 {[%emt 0:00:06]} 27. Kf3 {[%emt 0:00:02]} h5 {[%emt 0:00:02]} 28. h4 {[%emt 0:00:08]} Re7 {[%emt 0:00:01]} 29. Rd5 {[%emt 0:00:05]} Re6 {[%emt 0:00:07]} 30. Rc2 {[%emt 0:00:16]} Re7 {[%emt 0:00:02]} 31. Rg2 {[%emt 0:00:02]} Rh7 {[%emt 0:00:12]} 32. g4 {[%emt 0:00:18]} hxg4+ {[%emt 0:00:03]} 33. Rxg4 {[%emt 0:00:02]} Rh6 {[%emt 0:00:01]} 34. e5 {[%emt 0:00:06]} fxe5 {[%emt 0:00:04]} 35. fxe5 {[%emt 0:00:01]} Bc5 {[%emt 0:00:03]} 36. e6 {[%emt 0:00:11]} Kc6 {[%emt 0:00:04]} 37. Rdg5 {[%emt 0:00:05]} Be7 {[%emt 0:00:04]} 38. Rxg6 {[%emt 0:00:03]} Rxg6 {[%emt 0:00:13]} 39. Rxg6 {[%emt 0:00:03]} Bxh4 {[%emt 0:00:03]} 40. Ke4 {[%emt 0:00:05]} Kd6 {[%emt 0:00:02]} 41. Kf5 {[%emt 0:00:05]} Be7 {[%emt 0:00:03]} 42. Rg1 {[%emt 0:00:05]} Bf8 {[%emt 0:00:17]} 43. Rd1+ {[%emt 0:00:03]} 1-0

[Event "European Online Club-ch-G 2021"]
[Site "Online"]
[Date "2021.03.27"]
[Round "2.13"]
[White "Flear, Glenn C"]
[Black "Gumularz, Szymon"]
[Result "0-1"]
[ECO "D35"]
[WhiteElo "2431"]
[BlackElo "2517"]
[Annotator "ChessBase"]
[PlyCount "82"]
[EventDate "2021.03.27"]
[EventType "team-tourn"]
[EventCountry "NET"]
[SourceTitle "playchess.com"]
[Source "ChessBase"]
[SourceQuality "1"]
[TimeControl "900+5"]

1. d4 {[%emt 0:00:00]} Nf6 {[%emt 0:00:03]} 2. c4 {[%emt 0:00:03]} e6 {[%emt 0:00:02]} 3. Nf3 {[%emt 0:00:03]} d5 {[%emt 0:00:02]} 4. Nc3 {[%emt 0:00:22]} h6 {[%emt 0:00:12]} 5. cxd5 {[%emt 0:00:17]} exd5 {[%emt 0:00:02]} 6. Bf4 {[%emt 0:00:04]} Bd6 {[%emt 0:00:01]} 7. Bxd6 {[%emt 0:00:06]} Qxd6 {[%emt 0:00:02]} 8. e3 {[%emt 0:00:06]} O-O {[%emt 0:00:07]} 9. Bd3 {[%emt 0:00:04]} Bg4 {[%emt 0:00:05]} 10. h3 {[%emt 0:00:40]} Bxf3 {[%emt 0:00:04]} 11. Qxf3 {[%emt 0:00:16]} Re8 {[%emt 0:00:03]} 12. O-O {[%emt 0:00:32]} c6 {[%emt 0:00:02]} 13. Rab1 {[%emt 0:01:05]} a5 {[%emt 0:00:22]} 14. Rfd1 {[%emt 0:00:16]} Nbd7 {[%emt 0:00:03]} 15. Qe2 {[%emt 0:01:07]} g6 {[%emt 0:00:13]} 16. Qc2 {[%emt 0:00:12]} Kg7 {[%emt 0:00:02]} 17. a3 {[%emt 0:00:06]} h5 {[%emt 0:00:21]} 18. b4 {[%emt 0:00:20]} axb4 {[%emt 0:00:03]} 19. axb4 {[%emt 0:00:04]} b5 {[%emt 0:00:23]} 20. e4 {[%emt 0:00:15]} dxe4 {[%emt 0:00:04]} 21. Nxe4 {[%emt 0:00:18]} Nxe4 {[%emt 0:02:28]} 22. Bxe4 {[%emt 0:00:04]} Rac8 {[%emt 0:00:01]} 23. Bf3 {[%emt 0:00:06]} Nf6 {[%emt 0:00:16]} 24. Qc5 {[%emt 0:00:44]} Qf4 {[%emt 0:00:03]} 25. Re1 {[%emt 0:02:30]} Ne4 {[%emt 0:01:00]} 26. Qc2 {[%emt 0:01:03]} Ng5 {[%emt 0:01:53]} 27. Rxe8 {[%emt 0:00:42]} Nxf3+ {[%emt 0:00:03]} 28. gxf3 {[%emt 0:00:03]} Rxe8 {[%emt 0:00:02]} 29. Qxc6 {[%emt 0:00:05]} Re2 {[%emt 0:00:07]} 30. Qc3 {[%emt 0:00:16]} Qd2 {[%emt 0:02:11]} 31. Qxd2 {[%emt 0:00:44]} Rxd2 {[%emt 0:00:04]} 32. Kg2 {[%emt 0:03:08]} Rxd4 {[%emt 0:00:04]} 33. Rb3 {[%emt 0:00:11]} Kf6 {[%emt 0:00:07]} 34. Kg3 {[%emt 0:00:04]} g5 {[%emt 0:00:07]} 35. Rb2 {[%emt 0:00:05]} Kf5 {[%emt 0:00:02]} 36. Rb3 {[%emt 0:00:03]} f6 {[%emt 0:00:04]} 37. Rb2 {[%emt 0:00:03]} Ke5 {[%emt 0:00:04]} 38. Kg2 {[%emt 0:00:13]} Kd5 {[%emt 0:00:06]} 39. Rb1 {[%emt 0:00:13]} Kc4 {[%emt 0:00:10]} 40. Kg3 {[%emt 0:00:17]} h4+ {[%emt 0:00:04]} 41. Kg2 {[%emt 0:00:04]} Kc3 {[%emt 0:00:02]} 0-1

[Event "European Online Club-ch-G 2021"]
[Site "Online"]
[Date "2021.03.27"]
[Round "2.14"]
[White "Mastrovasilis, Dimitrios"]
[Black "Boyer, Mahel"]
[Result "0-1"]
[ECO "B00"]
[WhiteElo "2609"]
[BlackElo "2333"]
[Annotator "ChessBase"]
[PlyCount "106"]
[EventDate "2021.03.27"]
[EventType "team-tourn"]
[EventCountry "NET"]
[SourceTitle "playchess.com"]
[Source "ChessBase"]
[SourceQuality "1"]
[TimeControl "900+5"]

1. e4 {[%emt 0:00:00]} Nc6 {[%emt 0:00:02]} 2. Nf3 {[%emt 0:00:04]} d5 {[%emt 0:00:01]} 3. exd5 {[%emt 0:00:03]} Qxd5 {[%emt 0:00:00]} 4. Nc3 {[%emt 0:00:03]} Qh5 {[%emt 0:00:01]} 5. Nb5 {[%emt 0:00:03]} Kd8 {[%emt 0:00:02]} 6. h3 {[%emt 0:00:12]} Nf6 {[%emt 0:00:44]} 7. d4 {[%emt 0:00:12]} a6 {[%emt 0:00:17]} 8. Nc3 {[%emt 0:00:56]} e6 {[%emt 0:00:30]} 9. Bg5 {[%emt 0:02:05]} Be7 {[%emt 0:00:55]} 10. Be2 {[%emt 0:02:20]} Qg6 {[%emt 0:02:35]} 11. Bd3 {[%emt 0:00:48]} Qh5 {[%emt 0:00:03]} 12. Ne2 {[%emt 0:00:39]} h6 {[%emt 0:01:07]} 13. Ng3 {[%emt 0:01:00]} Qxg5 {[%emt 0:00:29]} 14. Nxg5 {[%emt 0:00:04]} hxg5 {[%emt 0:00:00]} 15. Ne4 {[%emt 0:00:16]} Nd5 {[%emt 0:00:03]} 16. c3 {[%emt 0:01:46]} b6 {[%emt 0:00:05]} 17. Qd2 {[%emt 0:00:38]} f6 {[%emt 0:00:05]} 18. O-O-O {[%emt 0:00:11]} Bb7 {[%emt 0:00:02]} 19. Rhe1 {[%emt 0:00:06]} Kc8 {[%emt 0:00:04]} 20. a3 {[%emt 0:01:13]} Kb8 {[%emt 0:00:13]} 21. g3 {[%emt 0:00:41]} Ka7 {[%emt 0:00:39]} 22. Bc2 {[%emt 0:01:02]} Na5 {[%emt 0:00:03]} 23. Qe2 {[%emt 0:00:08]} b5 {[%emt 0:01:08]} 24. Nd2 {[%emt 0:00:35]} Bc8 {[%emt 0:02:14]} 25. Be4 {[%emt 0:00:13]} Bd6 {[%emt 0:00:19]} 26. c4 {[%emt 0:00:24]} bxc4 {[%emt 0:00:04]} 27. Nxc4 {[%emt 0:00:00]} Nxc4 {[%emt 0:01:07]} 28. Qxc4 {[%emt 0:00:00]} Rb8 {[%emt 0:00:01]} 29. Bg2 {[%emt 0:00:32]} Bd7 {[%emt 0:00:18]} 30. Rxe6 {[%emt 0:00:20]} Bxe6 {[%emt 0:00:25]} 31. Bxd5 {[%emt 0:00:03]} Bxh3 {[%emt 0:00:08]} 32. Re1 {[%emt 0:00:16]} Bd7 {[%emt 0:00:04]} 33. Bc6 {[%emt 0:00:03]} Bg4 {[%emt 0:00:24]} 34. d5 {[%emt 0:00:13]} Bf3 {[%emt 0:00:02]} 35. Qd4+ {[%emt 0:00:07]} Rb6 {[%emt 0:00:02]} 36. b4 {[%emt 0:00:08]} Kb8 {[%emt 0:00:47]} 37. Re6 {[%emt 0:00:02]} Rd8 {[%emt 0:00:10]} 38. Qe3 {[%emt 0:00:08]} Bh5 {[%emt 0:00:11]} 39. Kb2 {[%emt 0:00:15]} Bf7 {[%emt 0:01:13]} 40. Re4 {[%emt 0:00:02]} Bg6 {[%emt 0:00:07]} 41. Re6 {[%emt 0:00:12]} Bf7 {[%emt 0:00:03]} 42. Rxd6 {[%emt 0:00:09]} Rxd6 {[%emt 0:00:02]} 43. Qc5 {[%emt 0:00:01]} Bxd5 {[%emt 0:00:10]} 44. Bxd5 {[%emt 0:00:14]} Rb5 {[%emt 0:00:01]} 45. Qc4 {[%emt 0:00:03]} Rbxd5 {[%emt 0:00:04]} 46. Kb3 {[%emt 0:00:05]} Rd2 {[%emt 0:00:12]} 47. Qg8+ {[%emt 0:00:07]} Kb7 {[%emt 0:00:05]} 48. Qxg7 {[%emt 0:00:03]} Rxf2 {[%emt 0:00:03]} 49. g4 {[%emt 0:00:02]} Rf3+ {[%emt 0:00:09]} 50. Kc4 {[%emt 0:00:10]} Rxa3 {[%emt 0:00:20]} 51. Qg6 {[%emt 0:00:02]} Rad3 {[%emt 0:00:06]} 52. Qe4+ {[%emt 0:00:03]} Ka7 {[%emt 0:00:02]} 53. Qe7 {[%emt 0:00:06]} Kb6 {[%emt 0:00:08]} 0-1

[Event "European Online Club-ch-G 2021"]
[Site "Online"]
[Date "2021.03.27"]
[Round "2.15"]
[White "Favarel, Camille"]
[Black "Tazbir, Marcin"]
[Result "0-1"]
[ECO "D02"]
[WhiteElo "2188"]
[BlackElo "2513"]
[Annotator "ChessBase"]
[PlyCount "110"]
[EventDate "2021.03.27"]
[EventType "team-tourn"]
[EventCountry "NET"]
[SourceTitle "playchess.com"]
[Source "ChessBase"]
[SourceQuality "1"]
[TimeControl "900+5"]

1. d4 {[%emt 0:00:00]} d5 {[%emt 0:00:08]} 2. Bf4 {[%emt 0:00:03]} Nf6 {[%emt 0:00:04]} 3. e3 {[%emt 0:00:01]} e6 {[%emt 0:00:03]} 4. Nd2 {[%emt 0:00:08]} Bd6 {[%emt 0:00:04]} 5. Bg3 {[%emt 0:00:06]} O-O {[%emt 0:00:03]} 6. Bd3 {[%emt 0:00:01]} b6 {[%emt 0:00:01]} 7. Ngf3 {[%emt 0:00:29]} Ba6 {[%emt 0:00:05]} 8. Bxa6 {[%emt 0:00:08]} Nxa6 {[%emt 0:00:03]} 9. Ne5 {[%emt 0:00:16]} c5 {[%emt 0:00:22]} 10. c3 {[%emt 0:00:03]} Qc7 {[%emt 0:00:12]} 11. O-O {[%emt 0:00:14]} Nb8 {[%emt 0:00:06]} 12. Qe2 {[%emt 0:00:26]} Nbd7 {[%emt 0:00:28]} 13. Nxd7 {[%emt 0:00:26]} Qxd7 {[%emt 0:00:12]} 14. Bh4 {[%emt 0:00:55]} Be7 {[%emt 0:00:39]} 15. a4 {[%emt 0:00:35]} Rfc8 {[%emt 0:00:49]} 16. Rfe1 {[%emt 0:00:58]} h6 {[%emt 0:00:19]} 17. Qb5 {[%emt 0:00:24]} Qc6 {[%emt 0:01:42]} 18. h3 {[%emt 0:03:18]} a6 {[%emt 0:00:15]} 19. Qd3 {[%emt 0:00:02]} Qb7 {[%emt 0:00:08]} 20. Ra2 {[%emt 0:00:23]} c4 {[%emt 0:01:31]} 21. Qc2 {[%emt 0:00:02]} b5 {[%emt 0:00:02]} 22. axb5 {[%emt 0:00:11]} axb5 {[%emt 0:00:02]} 23. Rea1 {[%emt 0:00:12]} Rxa2 {[%emt 0:00:22]} 24. Rxa2 {[%emt 0:00:01]} Ra8 {[%emt 0:00:02]} 25. b4 {[%emt 0:00:53]} Ra7 {[%emt 0:00:47]} 26. f4 {[%emt 0:03:09]} Qa8 {[%emt 0:00:27]} 27. Rxa7 {[%emt 0:00:05]} Qxa7 {[%emt 0:00:02]} 28. Bxf6 {[%emt 0:00:14]} Bxf6 {[%emt 0:00:09]} 29. Kh2 {[%emt 0:00:25]} Qa1 {[%emt 0:00:05]} 30. Nf3 {[%emt 0:00:01]} Be7 {[%emt 0:00:41]} 31. Qd2 {[%emt 0:00:28]} Bd6 {[%emt 0:00:14]} 32. Qc2 {[%emt 0:00:17]} Be7 {[%emt 0:00:35]} 33. Kg3 {[%emt 0:00:07]} Bd8 {[%emt 0:00:11]} 34. Kf2 {[%emt 0:00:02]} Bc7 {[%emt 0:00:09]} 35. Nd2 {[%emt 0:00:25]} g6 {[%emt 0:00:09]} 36. Nb1 {[%emt 0:00:05]} Kg7 {[%emt 0:00:03]} 37. Ke2 {[%emt 0:00:02]} f5 {[%emt 0:00:03]} 38. Kd2 {[%emt 0:00:07]} g5 {[%emt 0:00:02]} 39. g3 {[%emt 0:00:02]} Kg6 {[%emt 0:00:08]} 40. Ke2 {[%emt 0:00:03]} Kf6 {[%emt 0:00:06]} 41. Kf3 {[%emt 0:00:03]} Bd6 {[%emt 0:00:18]} 42. Kf2 {[%emt 0:00:08]} h5 {[%emt 0:00:12]} 43. Ke2 {[%emt 0:00:37]} h4 {[%emt 0:00:34]} 44. fxg5+ {[%emt 0:00:07]} Kxg5 {[%emt 0:00:03]} 45. gxh4+ {[%emt 0:00:01]} Kxh4 {[%emt 0:00:17]} 46. Kf3 {[%emt 0:00:03]} Kh5 {[%emt 0:00:09]} 47. Kg2 {[%emt 0:00:33]} Kh6 {[%emt 0:00:20]} 48. Kf3 {[%emt 0:00:46]} Qa8 {[%emt 0:00:09]} 49. Qf2 {[%emt 0:00:07]} Qa1 {[%emt 0:00:18]} 50. Qc2 {[%emt 0:00:03]} Be7 {[%emt 0:00:07]} 51. Kg2 {[%emt 0:00:11]} Bh4 {[%emt 0:00:06]} 52. Kf3 {[%emt 0:00:11]} Qa8 {[%emt 0:00:31]} 53. Qg2 {[%emt 0:00:03]} Qa4 {[%emt 0:00:12]} 54. Qd2 {[%emt 0:00:05]} Qb3 {[%emt 0:00:30]} 55. Kg2 {[%emt 0:00:07]} Qxb1 {[%emt 0:00:05]} 0-1

[Event "European Online Club-ch-G 2021"]
[Site "Online"]
[Date "2021.03.27"]
[Round "2.16"]
[White "Zawadzka, Jolanta"]
[Black "Hmamouche, Youssef"]
[Result "1-0"]
[ECO "B54"]
[WhiteElo "2399"]
[BlackElo "1926"]
[Annotator "NA"]
[PlyCount "107"]
[EventDate "2021.03.27"]
[EventType "team-tourn"]
[EventCountry "NET"]
[SourceTitle "playchess.com"]
[Source "ChessBase"]
[SourceQuality "1"]
[TimeControl "900+5"]

1. e4 {[%emt 0:00:00]} c5 {[%emt 0:00:05]} 2. Nf3 {[%emt 0:00:04]} d6 {[%emt 0:00:09]} 3. d4 {[%emt 0:00:04]} cxd4 {[%emt 0:00:03]} 4. Nxd4 {[%emt 0:00:02]} a6 {[%emt 0:00:03]} 5. f3 {[%emt 0:00:02]} Nf6 {[%emt 0:00:05]} 6. c4 {[%emt 0:00:09]} e6 {[%emt 0:00:21]} 7. Nc3 {[%emt 0:00:07]} Be7 {[%emt 0:00:14]} 8. Be2 {[%emt 0:00:04]} Nc6 {[%emt 0:00:08]} 9. Be3 {[%emt 0:00:03]} O-O {[%emt 0:00:30]} 10. O-O {[%emt 0:00:04]} Qc7 {[%emt 0:00:27]} 11. Rc1 {[%emt 0:00:11]} Bd7 {[%emt 0:01:03]} 12. Nd5 {[%emt 0:00:54]} Qd8 {[%emt 0:01:24]} 13. Nxe7+ {[%emt 0:00:07]} Qxe7 {[%emt 0:00:04]} 14. Qd2 {[%emt 0:00:05]} h6 {[%emt 0:00:24]} 15. Rfd1 {[%emt 0:00:03]} Rfd8 {[%emt 0:00:07]} 16. Nb3 {[%emt 0:00:08]} Ne8 {[%emt 0:00:25]} 17. Bb6 {[%emt 0:00:09]} Rdc8 {[%emt 0:00:06]} 18. Bf1 {[%emt 0:00:14]} Ne5 {[%emt 0:00:23]} 19. f4 {[%emt 0:00:42]} Ng6 {[%emt 0:00:44]} 20. c5 {[%emt 0:00:58]} d5 {[%emt 0:00:41]} 21. exd5 {[%emt 0:00:18]} exd5 {[%emt 0:00:08]} 22. Bd3 {[%emt 0:00:06]} Nf6 {[%emt 0:01:25]} 23. Re1 {[%emt 0:01:38]} Ne4 {[%emt 0:00:13]} 24. Qe3 {[%emt 0:00:32]} Qf6 {[%emt 0:00:43]} 25. Rf1 {[%emt 0:01:12]} Re8 {[%emt 0:00:24]} 26. Qd4 {[%emt 0:00:27]} Qh4 {[%emt 0:01:13]} 27. Rce1 {[%emt 0:03:21]} Bf5 {[%emt 0:01:19]} 28. Qxd5 {[%emt 0:00:53]} Nxf4 {[%emt 0:01:00]} 29. Qxf5 {[%emt 0:00:12]} Nxd3 {[%emt 0:00:03]} 30. Re3 {[%emt 0:00:50]} Nef2 {[%emt 0:01:06]} 31. Rxd3 {[%emt 0:00:30]} Nxd3 {[%emt 0:00:07]} 32. Qxd3 {[%emt 0:00:01]} Re1 {[%emt 0:00:03]} 33. Ba5 {[%emt 0:00:32]} Rxf1+ {[%emt 0:00:04]} 34. Qxf1 {[%emt 0:00:00]} Qa4 {[%emt 0:00:06]} 35. Bc3 {[%emt 0:00:13]} Qxa2 {[%emt 0:00:06]} 36. Nd4 {[%emt 0:01:11]} Qd5 {[%emt 0:00:02]} 37. Qf5 {[%emt 0:00:18]} Qxf5 {[%emt 0:00:33]} 38. Nxf5 {[%emt 0:00:00]} f6 {[%emt 0:00:05]} 39. Kf2 {[%emt 0:00:02]} Kf7 {[%emt 0:00:01]} 40. Nd6+ {[%emt 0:00:01]} Ke6 {[%emt 0:00:06]} 41. Nxb7 {[%emt 0:00:07]} Kd5 {[%emt 0:00:02]} 42. b4 {[%emt 0:00:14]} Kc6 {[%emt 0:00:06]} 43. Na5+ {[%emt 0:00:06]} Kb5 {[%emt 0:00:09]} 44. Ke3 {[%emt 0:00:02]} Rd8 {[%emt 0:00:05]} 45. c6 {[%emt 0:00:25]} Kb6 {[%emt 0:00:26]} 46. Bd4+ {[%emt 0:00:12]} Kc7 {[%emt 0:00:04]} 47. Kd3 {[%emt 0:00:06]} Rd5 {[%emt 0:00:09]} 48. Kc4 {[%emt 0:00:02]} Rg5 {[%emt 0:00:03]} 49. g3 {[%emt 0:00:25]} h5 {[%emt 0:00:01]} 50. Be3 {[%emt 0:00:03]} Rg4+ {[%emt 0:00:02]} 51. Bf4+ {[%emt 0:00:15]} Kc8 {[%emt 0:00:04]} 52. Kc5 {[%emt 0:00:02]} h4 {[%emt 0:00:04]} 53. Nc4 {[%emt 0:00:04]} g5 {[%emt 0:00:23]} 54. Nb6+ {[%emt 0:00:01]} 1-0